fUSD/lending_fUSD_20240518
["ID","MTS","AMOUNT","RATE_DAILY","PERIOD"]
[327343305,1715999441950,-151.0,0.00039742,14]
[327343307,1715999441959,-151.0,0.00039742,14]
[327343309,1715999441969,-151.0,0.00039742,14]
[327343311,1715999441978,-500.0,0.00039758,10]
[327343313,1715999441988,-1300.0,0.00039758,10]
[327343315,1715999441998,-800.0,0.00039758,10]
[327343317,1715999442007,-4600.0,0.00039758,10]
[327343319,1715999442017,-4500.0,0.00039758,10]
[327343321,1715999442027,-151.0,0.00039758,14]
[327343323,1715999442036,-151.0,0.00039758,14]
[327343325,1715999442045,-960.05463042,0.0003984,10]
[327343327,1715999442055,-338.1,0.0003987,2]
[327343329,1715999442064,-27743.97418048,0.0004,4]
[327343331,1715999442074,-241.90140427,0.0004,2]
[327343333,1715999442083,-2259.62804185,0.0004,4]
[327343335,1715999442093,-3579.53252172,0.0004,20]
[327343337,1715999442102,-698.96771964,0.0004,4]
[327343339,1715999442111,-155.0,0.0004,4]
[327343341,1715999442120,-790.35,0.0004,120]
[327343343,1715999442130,-155.19897466,0.0004,120]
[327343345,1715999442139,-379.19958869,0.0004,30]
[327343347,1715999442149,-288.53186192,0.0004,120]
[327343349,1715999442160,-493.79877323,0.0004,3]
[327343351,1715999442173,-491.24300228,0.0004001,30]
[327343353,1715999442182,-215.0,0.0004011,2]
[327343356,1715999442193,-1011.72639448,0.00040273,5]
[327343358,1715999442202,-150.0,0.00040375,2]
[327343359,1715999442212,-150.65,0.00040571,2]
[327343361,1715999442222,-115780.26277132,0.00040581,7]
[327343375,1715999442351,-66233.79528868,0.00040581,7]
[327343377,1715999442360,-2000.0,0.000408,2]
[327343379,1715999442370,-1300.0,0.00040854,10]
[327343381,1715999442379,-500.0,0.00040854,10]
[327343383,1715999442389,-800.0,0.00040854,10]
[327343385,1715999442399,-4600.0,0.00040854,10]
[327343387,1715999442409,-4500.0,0.00040854,10]
[327343389,1715999442420,-150.0,0.00041,10]
[327343391,1715999442430,-2500.0,0.00041096,30]
[327343393,1715999442439,-157.0,0.00041096,2]
[327343395,1715999442448,-1000.0,0.00041096,30]
[327343397,1715999442458,-150.0,0.00041096,2]
[327343399,1715999442468,-150.0,0.000415,11]
[327343401,1715999442477,-1000.0,0.00041698,2]
[327343403,1715999442486,-1958.5,0.00041698,2]
[327343405,1715999442496,-5580.526,0.00041698,2]
[327343406,1715999442506,-5000.0,0.00041796,7]
[327343407,1715999442515,-162.25594418,0.00041798,4]
[327343408,1715999442525,-215.0,0.0004185,2]
[327343409,1715999442535,-1300.0,0.0004195,30]
[327343410,1715999442545,-500.0,0.0004195,30]
[327343411,1715999442556,-800.0,0.0004195,30]
[327343412,1715999442565,-4600.0,0.0004195,30]
[327343413,1715999442574,-4500.0,0.0004195,30]
[327343414,1715999442584,-2215.24047972,0.00042,30]
[327343415,1715999442594,-490.12307429,0.00042,120]
[327343416,1715999442604,-150.0,0.00042,11]
[327343418,1715999442614,-3903.26325169,0.00042415,16]
[327343420,1715999442623,-1000.0,0.00042466,30]
[327343422,1715999442633,-1300.0,0.00042498,30]
[327343424,1715999442642,-500.0,0.00042498,30]
[327343426,1715999442652,-800.0,0.00042498,30]
[327343428,1715999442663,-4600.0,0.00042498,30]
[327343430,1715999442673,-4500.0,0.00042498,30]
[327343432,1715999442683,-150.0,0.000425,11]
[327343434,1715999442692,-2725.0,0.000427,92]
[327343436,1715999442702,-472.23678054,0.00043,30]
[327343438,1715999442711,-150.0,0.00043,11]
[327343440,1715999442720,-1400.0,0.00043,7]
[327343442,1715999442730,-1400.0,0.00043,7]
[327343444,1715999442739,-1400.0,0.00043,7]
[327343446,1715999442748,-1400.0,0.00043,7]
[327343448,1715999442758,-1400.0,0.00043,7]
[327343450,1715999442767,-1400.0,0.00043,7]
[327343452,1715999442777,-1300.0,0.00043046,30]
[327343454,1715999442787,-4600.0,0.00043046,30]
[327343456,1715999442796,-500.0,0.00043046,30]
[327343458,1715999442805,-800.0,0.00043046,30]
[327343460,1715999442815,-4500.0,0.00043046,30]
[327343462,1715999442824,-150.0,0.000435,11]
[327343464,1715999442834,-591.87489295,0.0004351,120]
[327343466,1715999442844,-155.0,0.0004351,90]
[327343468,1715999442854,-215.0,0.0004358,2]
[327343470,1715999442863,-1300.0,0.00043594,30]
[327343472,1715999442873,-4600.0,0.00043594,30]
[327343474,1715999442882,-500.0,0.00043594,30]
[327343476,1715999442892,-800.0,0.00043594,30]
[327343478,1715999442901,-4500.0,0.00043594,30]
[327343480,1715999442911,-150.65,0.00043825,2]
[327343482,1715999442922,-267.02282161,0.00043835,30]
[327343484,1715999442931,-515.09177466,0.00043835,30]
[327343486,1715999442940,-505.77715136,0.00043835,30]
[327343488,1715999442950,-509.65232533,0.00043835,30]
[327343490,1715999442959,-511.4108834,0.00043835,30]
[327343492,1715999442968,-512.17755972,0.00043835,30]
[327343494,1715999442978,-517.64405662,0.00043835,30]
[327343496,1715999442988,-508.86228467,0.00043835,30]
[327343498,1715999442998,-500.0,0.00043835,30]
[327343500,1715999443007,-518.49830802,0.00043835,30]
[327343501,1715999443017,-500.0,0.00043835,30]
[327343503,1715999443026,-565.76385678,0.00043835,30]
[327343505,1715999443037,-517.16341607,0.00043835,30]
[327343507,1715999443046,-432.88970435,0.00043835,30]
[327343510,1715999443056,-521.65945298,0.00043835,30]
[327343511,1715999443066,-522.12295092,0.00043835,30]
[327343513,1715999443076,-509.24046627,0.00043835,30]
[327343515,1715999443086,-515.0539211,0.00043835,30]
[327343517,1715999443095,-221.81023322,0.00043835,30]
[327343520,1715999443105,-500.0,0.00043835,30]
[327343522,1715999443115,-483.24601169,0.00043835,30]
[327343523,1715999443124,-513.13941838,0.00043835,30]
[327343526,1715999443134,-508.69542304,0.00043835,30]
[327343527,1715999443143,-521.32347725,0.00043835,30]
[327343529,1715999443153,-506.6538685,0.00043835,30]
[327343531,1715999443165,-513.58694906,0.00043835,30]
[327343534,1715999443176,-500.0,0.00043835,30]
[327343536,1715999443185,-500.0,0.00043835,30]
[327343538,1715999443194,-630.70375269,0.00043835,30]
[327343539,1715999443204,-510.62368598,0.00043835,30]
[327343541,1715999443214,-500.0,0.00043835,30]
[327343543,1715999443224,-649.17174861,0.00043835,30]
[327343545,1715999443234,-509.57878194,0.00043835,30]
[327343547,1715999443246,-510.72110541,0.00043835,30]
[327343549,1715999443256,-500.0,0.00043835,30]
[327343551,1715999443266,-500.0,0.00043835,30]
[327343553,1715999443276,-507.68107885,0.00043835,30]
[327343555,1715999443286,-378.4944722,0.00043835,30]
[327343558,1715999443296,-500.0,0.00043835,30]
[327343559,1715999443306,-210.95472933,0.00043835,30]
[327343561,1715999443315,-504.89975089,0.00043835,30]
[327343563,1715999443324,-500.0,0.00043835,30]
[327343566,1715999443334,-506.75596115,0.00043835,30]
[327343568,1715999443344,-509.70695309,0.00043835,30]
[327343571,1715999443354,-500.0,0.00043835,30]
[327343573,1715999443364,-508.62525536,0.00043835,30]
[327343574,1715999443375,-500.0,0.00043835,30]
[327343576,1715999443385,-500.0,0.00043835,30]
[327343578,1715999443395,-506.42250644,0.00043835,30]
[327343581,1715999443405,-513.67293556,0.00043835,30]
[327343583,1715999443416,-515.09665699,0.00043835,30]
[327343584,1715999443426,-500.0,0.00043835,30]
[327343586,1715999443436,-500.0,0.00043835,30]
[327343588,1715999443445,-500.0,0.00043835,30]
[327343590,1715999443454,-500.0,0.00043835,30]
[327343592,1715999443464,-506.90046254,0.00043835,30]
[327343594,1715999443474,-500.0,0.00043835,30]
[327343596,1715999443484,-500.0,0.00043835,30]
[327343598,1715999443493,-500.0,0.00043835,30]
[327343600,1715999443504,-500.0,0.00043835,30]
[327343602,1715999443513,-500.0,0.00043835,30]
[327343605,1715999443523,-511.94007167,0.00043835,30]
[327343607,1715999443532,-500.0,0.00043835,30]
[327343609,1715999443542,-514.16180514,0.00043835,30]
[327343610,1715999443552,-512.18400743,0.00043835,30]
[327343611,1715999443562,-500.0,0.00043835,30]
[327343612,1715999443572,-500.0,0.00043835,30]
[327343613,1715999443582,-506.33309128,0.00043835,30]
[327343614,1715999443592,-500.0,0.00043835,30]
[327343615,1715999443602,-500.0,0.00043835,30]
[327343616,1715999443612,-500.0,0.00043835,30]
[327343617,1715999443621,-509.27864049,0.00043835,30]
[327343618,1715999443631,-507.53017695,0.00043835,30]
[327343619,1715999443641,-500.35691903,0.00043835,30]
[327343620,1715999443651,-500.0,0.00043835,30]
[327343621,1715999443661,-505.07700981,0.00043835,30]
[327343622,1715999443671,-500.0,0.00043835,30]
[327343623,1715999443788,-500.0,0.00043835,30]
[327343624,1715999443798,-500.0,0.00043835,30]
[327343625,1715999443808,-500.0,0.00043835,30]
[327343626,1715999443817,-503.39136274,0.00043835,30]
[327343627,1715999443827,-506.55248106,0.00043835,30]
[327343628,1715999443837,-521.34746336,0.00043835,30]
[327343629,1715999443847,-500.0,0.00043835,30]
[327343630,1715999443857,-503.72167772,0.00043835,30]
[327343631,1715999443867,-528.47057252,0.00043835,30]
[327343632,1715999443876,-500.0,0.00043835,30]
[327343633,1715999443885,-504.71147752,0.00043835,30]
[327343634,1715999443895,-518.25303727,0.00043835,30]
[327343635,1715999443904,-500.0,0.00043835,30]
[327343636,1715999443914,-522.34716235,0.00043835,30]
[327343637,1715999443923,-500.0,0.00043835,30]
[327343638,1715999443932,-318.45363077,0.00043835,30]
[327343639,1715999443942,-520.39349849,0.00043835,30]
[327343640,1715999443952,-500.0,0.00043835,30]
[327343641,1715999443962,-500.0,0.00043835,30]
[327343642,1715999443971,-533.39327855,0.00043835,30]
[327343643,1715999443980,-500.0,0.00043835,30]
[327343644,1715999443990,-500.0,0.00043835,30]
[327343645,1715999444000,-500.0,0.00043835,30]
[327343646,1715999444010,-509.33300138,0.00043835,30]
[327343647,1715999444019,-500.0,0.00043835,30]
[327343648,1715999444029,-503.10951288,0.00043835,30]
[327343649,1715999444039,-500.0,0.00043835,30]
[327343650,1715999444049,-517.20203209,0.00043835,30]
[327343651,1715999444058,-500.0,0.00043835,30]
[327343652,1715999444068,-504.21844596,0.00043835,31]
[327343653,1715999444077,-230.86862121,0.00043835,30]
[327343654,1715999444087,-544.76948989,0.00043835,30]
[327343655,1715999444097,-3032.46855365,0.00043835,30]
[327343656,1715999444107,-500.0,0.00043835,30]
[327343657,1715999444116,-519.87467835,0.00043835,30]
[327343658,1715999444126,-500.0,0.00043835,30]
[327343659,1715999444136,-528.23915345,0.00043835,30]
[327343660,1715999444146,-500.0,0.00043835,30]
[327343661,1715999444156,-500.0,0.00043835,30]
[327343662,1715999444170,-510.22767706,0.00043835,30]
[327343663,1715999444180,-500.0,0.00043835,30]
[327343664,1715999444189,-500.0,0.00043835,30]
[327343665,1715999444199,-519.2758521,0.00043835,30]
[327343666,1715999444209,-530.40136279,0.00043835,30]
[327343667,1715999444219,-519.23207341,0.00043835,30]
[327343668,1715999444228,-443.70178674,0.00043835,30]
[327343669,1715999444238,-542.41582928,0.00043835,30]
[327343670,1715999444248,-500.0,0.00043835,30]
[327343671,1715999444258,-500.0,0.00043835,30]
[327343672,1715999444268,-500.0,0.00043835,30]
[327343673,1715999444278,-505.75254529,0.00043835,30]
[327343674,1715999444288,-509.989631,0.00043835,30]
[327343675,1715999444297,-500.0,0.00043835,30]
[327343676,1715999444307,-505.93919269,0.00043835,30]
[327343677,1715999444317,-507.65815719,0.00043835,30]
[327343678,1715999444327,-500.0,0.00043835,30]
[327343679,1715999444336,-515.6834898,0.00043835,30]
[327343680,1715999444346,-502.98542455,0.00043835,30]
[327343681,1715999444356,-500.0,0.00043835,30]
[327343682,1715999444365,-500.0,0.00043835,30]
[327343683,1715999444375,-500.0,0.00043835,30]
[327343684,1715999444385,-500.0,0.00043835,30]
[327343685,1715999444396,-500.0,0.00043835,30]
[327343686,1715999444406,-500.0,0.00043835,30]
[327343687,1715999444416,-500.0,0.00043835,30]
[327343688,1715999444426,-500.0,0.00043835,30]
[327343689,1715999444436,-500.0,0.00043835,30]
[327343690,1715999444445,-500.0,0.00043835,30]
[327343691,1715999444469,-624.62442926,0.00043835,30]
[327343692,1715999444479,-500.0,0.00043835,30]
[327343693,1715999444489,-500.0,0.00043835,30]
[327343694,1715999444505,-500.0,0.00043835,30]
[327343695,1715999444515,-500.0,0.00043835,30]
[327343696,1715999444525,-500.0,0.00043835,30]
[327343697,1715999444536,-597.99521699,0.00043835,30]
[327343698,1715999444551,-540.51115678,0.00043835,30]
[327343699,1715999444562,-529.81045303,0.00043835,30]
[327343700,1715999444571,-540.50681028,0.00043835,30]
[327343701,1715999444581,-519.22124483,0.00043835,30]
[327343702,1715999444590,-510.07888927,0.00043835,30]
[327343703,1715999444600,-500.0,0.00043835,30]
[327343704,1715999444610,-513.64081654,0.00043835,30]
[327343705,1715999444619,-500.0,0.00043835,30]
[327343706,1715999444628,-506.32418797,0.00043835,30]
[327343707,1715999444638,-500.0,0.00043835,30]
[327343708,1715999444647,-500.0,0.00043835,30]
[327343709,1715999444657,-500.0,0.00043835,30]
[327343710,1715999444667,-619.09539125,0.00043835,30]
[327343711,1715999444676,-500.0,0.00043835,30]
[327343712,1715999444685,-500.0,0.00043835,30]
[327343713,1715999444695,-518.80131063,0.00043835,30]
[327343714,1715999444704,-410.9998046,0.00043835,30]
[327343715,1715999444713,-527.90749355,0.00043835,30]
[327343716,1715999444722,-500.0,0.00043835,30]
[327343717,1715999444732,-500.0,0.00043835,30]
[327343718,1715999444741,-500.0,0.00043835,30]
[327343719,1715999444750,-500.0,0.00043835,30]
[327343721,1715999444760,-503.31256693,0.00043835,30]
[327343723,1715999444769,-500.0,0.00043835,30]
[327343725,1715999444778,-517.98586759,0.00043835,30]
[327343727,1715999444788,-511.75775714,0.00043835,30]
[327343729,1715999444798,-538.51236108,0.00043835,30]
[327343731,1715999444808,-500.0,0.00043835,30]
[327343733,1715999444817,-500.0,0.00043835,30]
[327343735,1715999444827,-513.3060703,0.00043835,30]
[327343737,1715999444836,-500.0,0.00043835,30]
[327343739,1715999444845,-500.0,0.00043835,30]
[327343741,1715999444855,-500.0,0.00043835,30]
[327343743,1715999444864,-500.0,0.00043835,30]
[327343745,1715999444873,-500.0,0.00043835,30]
[327343747,1715999444883,-504.23618454,0.00043835,30]
[327343749,1715999444892,-500.0,0.00043835,30]
[327343751,1715999444902,-500.0,0.00043835,30]
[327343753,1715999444910,-500.0,0.00043835,30]
[327343755,1715999444920,-510.72974453,0.00043835,30]
[327343757,1715999444930,-1250.46,0.00043835,30]
[327343759,1715999444939,-500.0,0.00043835,7]
[327343761,1715999444948,-500.0,0.00043835,30]
[327343763,1715999444957,-151.0,0.00043835,14]
[327343765,1715999444966,-500.0,0.00043835,30]
[327343767,1715999444976,-151.0,0.00043835,14]
[327343769,1715999444985,-151.0,0.00043835,14]
[327343771,1715999444995,-500.0,0.00043835,30]
[327343773,1715999445004,-500.0,0.00043835,30]
[327343775,1715999445013,-151.0,0.00043835,14]
[327343777,1715999445023,-508.64995126,0.00043835,30]
[327343778,1715999445032,-151.0,0.00043835,14]
[327343779,1715999445041,-500.0,0.00043835,30]
[327343780,1715999445050,-500.0,0.00043835,30]
[327343781,1715999445059,-500.0,0.00043835,30]
[327343782,1715999445068,-500.0,0.00043835,30]
[327343783,1715999445079,-505.66949152,0.00043835,30]
[327343784,1715999445092,-151.0,0.00043835,14]
[327343785,1715999445105,-500.0,0.00043835,30]
[327343786,1715999445119,-151.0,0.00043835,14]
[327343787,1715999445131,-500.0,0.00043835,30]
[327343788,1715999445142,-500.0,0.00043835,30]
[327343789,1715999445153,-500.0,0.00043835,30]
[327343790,1715999445167,-1011.18414953,0.00043835,30]
[327343791,1715999445179,-500.0,0.00043835,30]
[327343792,1715999445191,-532.02443344,0.00043835,30]
[327343793,1715999445203,-500.0,0.00043835,30]
[327343794,1715999445215,-153.401548,0.00043835,14]
[327343795,1715999445228,-527.60946629,0.00043835,30]
[327343796,1715999445239,-151.482256,0.00043835,14]
[327343797,1715999445250,-503.62419339,0.00043835,30]
[327343798,1715999445265,-507.44227919,0.00043835,30]
[327343799,1715999445276,-500.0,0.00043835,30]
[327343800,1715999445288,-500.0,0.00043835,30]
[327343801,1715999445301,-500.0,0.00043835,30]
[327343802,1715999445313,-500.0,0.00043835,30]
[327343804,1715999445325,-500.0,0.00043835,30]
[327343805,1715999445336,-530.01663715,0.00043835,30]
[327343806,1715999445348,-520.47913386,0.00043835,30]
[327343807,1715999445360,-621.31807311,0.00043835,30]
[327343808,1715999445372,-522.98093364,0.00043835,30]
[327343809,1715999445383,-521.59519884,0.00043835,30]
[327343810,1715999445394,-500.0,0.00043835,30]
[327343811,1715999445404,-151.0,0.00043835,14]
[327343812,1715999445414,-151.0,0.00043835,14]
[327343813,1715999445427,-513.7569513,0.00043835,30]
[327343814,1715999445438,-527.94512584,0.00043835,30]
[327343815,1715999445450,-500.0,0.00043835,30]
[327343816,1715999445462,-511.6302912,0.00043835,30]
[327343817,1715999445474,-500.0,0.00043835,30]
[327343818,1715999445485,-500.0,0.00043835,30]
[327343819,1715999445497,-619.0957588,0.00043835,30]
[327343820,1715999445510,-500.0,0.00043835,30]
[327343821,1715999445523,-500.0,0.00043835,30]
[327343822,1715999445536,-402.71732871,0.00043835,30]
[327343823,1715999445547,-500.0,0.00043835,30]
[327343824,1715999445556,-506.86003059,0.00043835,30]
[327343825,1715999445566,-500.0,0.00043835,30]
[327343826,1715999445576,-514.07498865,0.00043835,30]
[327343827,1715999445586,-500.0,0.00043835,30]
[327343828,1715999445597,-328.35809737,0.00043835,30]
[327343829,1715999445609,-500.0,0.00043835,30]
[327343830,1715999445620,-151.0,0.00043835,14]
[327343831,1715999445632,-500.0,0.00043835,30]
[327343832,1715999445642,-500.0,0.00043835,30]
[327343833,1715999445652,-500.0,0.00043835,30]
[327343834,1715999445663,-500.0,0.00043835,30]
[327343835,1715999445675,-382.83390973,0.00043835,30]
[327343836,1715999445687,-518.16161414,0.00043835,30]
[327343837,1715999445698,-500.0,0.00043835,30]
[327343838,1715999445708,-500.0,0.00043835,30]
[327343839,1715999445719,-500.0,0.00043835,30]
[327343840,1715999445729,-500.0,0.00043835,30]
[327343841,1715999445739,-500.0,0.00043835,31]
[327343842,1715999445750,-497.26266594,0.00043835,32]
[327343843,1715999445760,-523.14522717,0.00043835,30]
[327343844,1715999445771,-500.0,0.00043835,30]
[327343845,1715999445788,-500.0,0.00043835,30]
[327343846,1715999445804,-500.0,0.00043835,30]
[327343847,1715999445815,-500.0,0.00043835,30]
[327343848,1715999445828,-500.0,0.00043835,30]
[327343849,1715999445841,-500.0,0.00043835,30]
[327343850,1715999445853,-500.0,0.00043835,30]
[327343851,1715999445865,-500.0,0.00043835,30]
[327343852,1715999445878,-500.0,0.00043835,30]
[327343853,1715999445890,-521.10674633,0.00043835,30]
[327343854,1715999445902,-500.0,0.00043835,30]
[327343855,1715999445916,-500.0,0.00043835,31]
[327343856,1715999445927,-500.0,0.00043835,32]
[327343857,1715999445940,-151.0,0.00043835,14]
[327343858,1715999445952,-500.0,0.00043835,33]
[327343859,1715999445964,-151.0,0.00043835,14]
[327343860,1715999445976,-500.0,0.00043835,30]
[327343861,1715999445987,-389.56293006,0.00043835,34]
[327343862,1715999445998,-500.0,0.00043835,30]
[327343863,1715999446009,-500.0,0.00043835,30]
[327343864,1715999446020,-500.0,0.00043835,30]
[327343865,1715999446031,-151.0,0.00043835,14]
[327343866,1715999446042,-539.48643098,0.00043835,30]
[327343867,1715999446054,-522.0063909,0.00043835,30]
[327343868,1715999446065,-516.65468749,0.00043835,30]
[327343869,1715999446077,-500.0,0.00043835,30]
[327343870,1715999446088,-529.23159777,0.00043835,30]
[327343871,1715999446099,-500.0,0.00043835,30]
[327343872,1715999446111,-526.95585924,0.00043835,30]
[327343873,1715999446122,-522.71394552,0.00043835,30]
[327343874,1715999446133,-518.98605253,0.00043835,30]
[327343875,1715999446146,-512.71771003,0.00043835,30]
[327343876,1715999446160,-521.74832874,0.00043835,30]
[327343877,1715999446172,-518.45687025,0.00043835,30]
[327343878,1715999446183,-521.89401187,0.00043835,30]
[327343879,1715999446194,-500.0,0.00043835,30]
[327343880,1715999446206,-500.0,0.00043835,30]
[327343881,1715999446217,-394.60444313,0.00043835,30]
[327343882,1715999446229,-524.72000742,0.00043835,30]
[327343883,1715999446241,-151.0,0.00043835,14]
[327343884,1715999446253,-500.0,0.00043835,30]
[327343885,1715999446264,-500.0,0.00043835,30]
[327343886,1715999446275,-515.66144879,0.00043835,30]
[327343887,1715999446286,-547.51350702,0.00043835,30]
[327343888,1715999446298,-500.0,0.00043835,30]
[327343890,1715999446308,-500.0,0.00043835,30]
[327343891,1715999446320,-248.33137,0.00043835,14]
[327343892,1715999446331,-511.24515696,0.00043835,30]
[327343893,1715999446344,-510.58391949,0.00043835,30]
[327343894,1715999446356,-500.0,0.00043835,30]
[327343895,1715999446368,-500.0,0.00043835,30]
[327343896,1715999446379,-500.0,0.00043835,30]
[327343897,1715999446391,-511.00233205,0.00043835,30]
[327343898,1715999446403,-500.0,0.00043835,30]
[327343899,1715999446415,-500.0,0.00043835,30]
[327343900,1715999446427,-544.12034488,0.00043835,30]
[327343901,1715999446438,-500.0,0.00043835,30]
[327343902,1715999446448,-505.47416701,0.00043835,30]
[327343903,1715999446457,-500.0,0.00043835,30]
[327343904,1715999446466,-508.10144039,0.00043835,30]
[327343905,1715999446476,-507.12361451,0.00043835,30]
[327343906,1715999446485,-500.0,0.00043835,30]
[327343907,1715999446495,-512.40262269,0.00043835,30]
[327343908,1715999446504,-530.59283604,0.00043835,30]
[327343909,1715999446514,-509.11211492,0.00043835,30]
[327343910,1715999446523,-514.04459966,0.00043835,30]
[327343911,1715999446695,-500.0,0.00043835,30]
[327343912,1715999446710,-508.86746978,0.00043835,30]
[327343913,1715999446720,-547.35186515,0.00043835,30]
[327343914,1715999446729,-515.89173157,0.00043835,30]
[327343915,1715999446739,-519.49887857,0.00043835,30]
[327343916,1715999446748,-523.71172585,0.00043835,30]
[327343917,1715999446763,-500.0,0.00043835,30]
[327343918,1715999446772,-514.82086536,0.00043835,30]
[327343919,1715999446783,-527.0957607,0.00043835,30]
[327343920,1715999446792,-500.0,0.00043835,30]
[327343921,1715999446802,-504.81834064,0.00043835,30]
[327343922,1715999446811,-524.22493653,0.00043835,30]
[327343923,1715999446821,-500.0,0.00043835,30]
[327343924,1715999446831,-513.30551332,0.00043835,30]
[327343925,1715999446841,-500.0,0.00043835,30]
[327343926,1715999446851,-573.57004157,0.00043835,30]
[327343927,1715999446860,-202.11118492,0.00043835,30]
[327343928,1715999446870,-523.58044266,0.00043835,30]
[327343929,1715999446879,-500.0,0.00043835,30]
[327343930,1715999446891,-504.92180197,0.00043835,30]
[327343931,1715999446900,-511.34658251,0.00043835,30]
[327343932,1715999446910,-517.9051569,0.00043835,30]
[327343933,1715999446920,-503.03550678,0.00043835,30]
[327343934,1715999446930,-500.0,0.00043835,30]
[327343935,1715999446940,-500.0,0.00043835,30]
[327343936,1715999446950,-506.87258021,0.00043835,30]
[327343937,1715999446959,-501.66560126,0.00043835,30]
[327343938,1715999446970,-505.30562582,0.00043835,30]
[327343939,1715999446981,-533.22463627,0.00043835,30]
[327343940,1715999446991,-500.0,0.00043835,30]
[327343941,1715999447001,-500.0,0.00043835,30]
[327343942,1715999447011,-500.0,0.00043835,30]
[327343943,1715999447022,-504.51626312,0.00043835,30]
[327343944,1715999447032,-500.0,0.00043835,30]
[327343945,1715999447041,-505.47159768,0.00043835,30]
[327343946,1715999447051,-500.0,0.00043835,30]
[327343947,1715999447060,-518.90436295,0.00043835,30]
[327343948,1715999447070,-510.50826922,0.00043835,30]
[327343949,1715999447080,-500.0,0.00043835,30]
[327343950,1715999447089,-500.0,0.00043835,30]
[327343951,1715999447099,-500.0,0.00043835,30]
[327343952,1715999447108,-500.0,0.00043835,31]
[327343953,1715999447118,-500.0,0.00043835,32]
[327343954,1715999447127,-532.39029617,0.00043835,30]
[327343955,1715999447138,-506.41178066,0.00043835,30]
[327343956,1715999447147,-157.06454689,0.00043835,33]
[327343957,1715999447156,-500.0,0.00043835,30]
[327343958,1715999447171,-553.32477268,0.00043835,30]
[327343959,1715999447180,-507.57492542,0.00043835,30]
[327343960,1715999447189,-500.0,0.00043835,30]
[327343961,1715999447199,-500.0,0.00043835,30]
[327343962,1715999447208,-500.0,0.00043835,30]
[327343963,1715999447218,-504.2453878,0.00043835,30]
[327343964,1715999447227,-684.37,0.00043835,30]
[327343965,1715999447236,-576.56688887,0.00043835,30]
[327343966,1715999447245,-506.24944868,0.00043835,30]
[327343967,1715999447255,-500.0,0.00043835,30]
[327343968,1715999447264,-526.05462743,0.00043835,30]
[327343969,1715999447274,-507.42393566,0.00043835,30]
[327343970,1715999447283,-500.0,0.00043835,30]
[327343971,1715999447292,-507.88459671,0.00043835,30]
[327343972,1715999447302,-500.0,0.00043835,30]
[327343973,1715999447311,-500.0,0.00043835,30]
[327343974,1715999447321,-506.11740819,0.00043835,30]
[327343975,1715999447330,-500.0,0.00043835,30]
[327343976,1715999447340,-504.60461143,0.00043835,30]
[327343977,1715999447349,-508.90635102,0.00043835,30]
[327343978,1715999447359,-517.56088797,0.00043835,30]
[327343979,1715999447368,-587.47186304,0.00043835,30]
[327343980,1715999447378,-513.43945012,0.00043835,30]
[327343981,1715999447387,-500.0,0.00043835,30]
[327343982,1715999447397,-500.0,0.00043835,30]
[327343983,1715999447406,-515.32738749,0.00043835,30]
[327343984,1715999447416,-501.62998238,0.00043835,30]
[327343985,1715999447425,-500.0,0.00043835,30]
[327343986,1715999447435,-512.95968685,0.00043835,30]
[327343987,1715999447444,-500.0,0.00043835,30]
[327343988,1715999447453,-508.77356572,0.00043835,30]